bitfinex/quotes_SOLUSD_20250131
["timestamp","ask_amount","ask_price","bid_price","bid_amount"]
[1738312444978,0.03,235.87,235.84,20.61619127]
[1738312445564,0.03,235.87,235.84,8.063]
[1738312448070,0.03,235.87,235.85,8.31319127]
[1738312449884,0.03,235.87,235.86,4.2398]
[1738312450091,0.03,235.87,235.86,12.55299127]
[1738312450690,0.03,235.87,235.86,19.83372337]
[1738312450890,0.03,235.87,235.86,21.34562337]
[1738312454197,0.03,235.87,235.86,240.64562337]
[1738312454495,0.03,235.87,235.86,240.00989127]
[1738312454688,0.03,235.87,235.86,253.4217398]
[1738312455183,0.03,235.94,235.9,20.0]
[1738312455390,0.03,235.94,235.93,8.31319127]
[1738312456304,0.03,235.94,235.93,12.55169127]
[1738312457500,0.03,235.94,235.92,8.31319127]
[1738312457875,0.03,235.94,235.91,12.55209127]
[1738312459987,0.03,235.94,235.89,8.31319127]
[1738312460300,0.03,235.94,235.88,8.31319127]
[1738312461095,0.03,235.94,235.88,12.55259127]
[1738312461678,0.03,235.94,235.89,8.31319127]
[1738312462004,0.03,235.94,235.92,8.31319127]
[1738312463100,0.03,235.94,235.93,4.2385]
[1738312464415,0.03,235.94,235.93,13.18724385]
[1738312465481,0.03,235.94,235.93,12.55169127]
[1738312466711,0.03,235.94,235.93,8.31319127]
[1738312467381,0.03,235.94,235.91,8.31319127]
[1738312467581,0.03,235.94,235.9,8.31319127]
[1738312469095,0.03,235.94,235.88,8.31319127]
[1738312470306,0.03,235.94,235.88,12.55259127]
[1738312470687,0.03,235.94,235.9,8.31319127]
[1738312471505,0.03,235.94,235.9,12.55209127]
[1738312471695,0.03,235.94,235.92,8.31319127]
[1738312473487,0.03,235.94,235.92,12.55179127]
[1738312478709,0.03,235.94,235.92,12.39038127]
[1738312482016,0.03,235.94,235.93,0.63554284]
[1738312484114,0.03,235.94,235.93,219.93554284]
[1738312484315,0.03,235.94,235.93,219.3]
[1738312486613,0.03,235.94,235.93,232.71184853]
[1738312487007,0.03,235.94,235.93,236.95034853]
[1738312487400,0.03,235.94,235.93,107.75004853]
[1738312488524,0.03,235.94,235.93,116.0632398]
[1738312489198,0.03,235.94,235.93,102.65139127]
[1738312492521,0.03,235.94,235.93,94.85169127]
[1738312494123,0.03,235.94,235.93,82.3]
[1738312496107,0.03,235.94,235.93,90.61319127]
[1738312500336,0.03,235.94,235.91,8.31319127]
[1738312501023,0.03,235.94,235.9,149.55209127]
[1738312501238,0.03,235.94,235.9,145.31319127]
[1738312502627,0.03,235.94,235.9,149.55219127]
[1738312502817,0.03,235.94,235.92,8.31319127]
[1738312503932,0.03,235.94,235.91,12.55199127]
[1738312504425,0.03,235.94,235.91,4.2388]
[1738312505018,0.03,235.94,235.9,8.37619127]
[1738312505222,0.03,235.94,235.9,0.063]
[1738312505532,0.03,235.94,235.9,4.063]
[1738312506635,13.44184853,235.94,235.9,4.063]
[1738312507020,20.0,235.92,235.9,4.063]
[1738312507840,13.41184853,235.91,235.9,4.063]
[1738312508012,15.03164853,235.91,235.9,4.063]
[1738312509115,16.10476078,235.91,235.9,4.063]
[1738312509320,16.52856078,235.91,235.9,4.063]
[1738312510124,34.41184853,235.88,235.87,0.063]
[1738312510725,40.45394853,235.88,235.87,0.063]
[1738312510932,34.41184853,235.85,235.84,8.063]
[1738312512645,34.83574853,235.85,235.84,8.063]
[1738312515442,34.83574853,235.85,235.84,4.0]
[1738312515664,13.41184853,235.79,235.78,0.063]
[1738312516751,13.83594853,235.79,235.78,0.063]
[1738312517945,14.80993802,235.79,235.78,0.063]
[1738312518136,34.41184853,235.77,235.68,0.063]
[1738312519071,34.83594853,235.77,235.68,0.063]
[1738312519554,30.83594853,235.77,235.68,0.063]
[1738312523337,31.80993802,235.77,235.68,0.063]
[1738312539372,32.8477973,235.77,235.68,0.063]
[1738312541372,32.8777973,235.77,235.68,0.063]
[1738312541869,32.82184217,235.77,235.68,0.063]
[1738312543167,31.78398289,235.77,235.68,0.063]
[1738312553195,20.0,235.7,235.68,0.063]
[1738312553686,13.41184853,235.69,235.68,0.063]
[1738312554781,14.4953468,235.69,235.68,0.063]
[1738312554985,14.9195468,235.69,235.68,0.063]
[1738312555687,13.83604853,235.69,235.68,0.063]
[1738312560783,94.43604853,235.69,235.68,0.063]
[1738312561794,14.38583802,235.68,235.66,0.063]
[1738312561974,13.83614853,235.67,235.66,0.063]
[1738312573505,0.97398949,235.61,235.59,16.063]
[1738312573709,20.0,235.53,235.48,0.03]
[1738312573925,13.41184853,235.52,235.48,0.03]
[1738312574125,20.0,235.49,235.48,0.03]
[1738312574404,33.41184853,235.49,235.48,0.03]
[1738312587212,13.41184853,235.49,235.48,0.03]
[1738312587915,0.4245,235.56,235.49,1.0]
[1738312588123,0.4244,235.6,235.51,1.0]
[1738312588625,20.0,235.58,235.51,1.0]
[1738312588808,0.03,235.52,235.48,1.03]
[1738312589013,0.03,235.52,235.48,0.03]
[1738312589739,0.03,235.52,235.48,1.03]
[1738312589923,0.03,235.52,235.5,1.0]
[1738312591741,0.03,235.52,235.48,0.03]
[1738312592111,13.41184853,235.49,235.48,0.03]
[1738312593441,13.83644853,235.49,235.48,0.03]
[1738312595625,13.41184853,235.49,235.48,0.03]
[1738312603231,20.0,235.51,235.48,0.03]
[1738312604043,20.0,235.51,235.48,1.03]
[1738312607653,0.03,235.52,235.51,1.0]
[1738312607950,0.03,235.52,235.51,2.5422]
[1738312609157,0.03,235.52,235.51,1.5422]
[1738312609638,0.03,235.52,235.51,2.5422]
[1738312611947,0.03,235.52,235.51,17.13319127]
[1738312613143,0.03,235.52,235.51,8.82]
[1738312621839,0.03,235.52,235.51,17.13319127]
[1738312622038,0.03,235.52,235.51,99.43319127]
[1738312623052,81.0243,235.66,235.62,1.0]
[1738312623255,0.4243,235.66,235.62,1.0]
[1738312623456,13.41184853,235.65,235.62,1.0]
[1738312623961,13.41184853,235.68,235.62,1.0]
[1738312624175,13.41184853,235.67,235.62,1.0]
[1738312624578,13.41184853,235.67,235.6,1.0]
[1738312625043,13.41184853,235.67,235.62,1.0]
[1738312625666,0.4243,235.68,235.62,1.0]
[1738312625851,0.03,235.69,235.65,1.0]
[1738312626970,13.41184853,235.68,235.65,1.0]
[1738312627174,13.83614853,235.68,235.65,1.0]
[1738312627563,0.03,235.69,235.65,1.0]
[1738312627764,0.03,235.69,235.68,1.0]
[1738312629761,0.03,235.69,235.68,7.3958]
[1738312636579,0.03,235.69,235.68,1.0]
[1738312636759,0.03,235.69,235.66,1.0]
[1738312638691,13.44184853,235.69,235.66,1.0]
[1738312639391,13.44184853,235.69,235.64,1.0]
[1738312640282,13.86604853,235.69,235.64,1.0]
[1738312641284,13.86604853,235.69,235.67,1.0]
[1738312641680,13.44184853,235.69,235.67,1.0]
[1738312643198,0.03,235.69,235.67,5.2431]
[1738312643496,0.03,235.69,235.68,8.31319127]
[1738312646100,0.03,235.69,235.67,13.55629127]
[1738312649690,0.03,235.69,235.68,8.31319127]
[1738312649874,0.03,235.69,235.68,92.24829127]
[1738312651484,0.03,235.69,235.68,268.92235635]
[1738312652177,0.03,235.76,235.75,2.6108]
[1738312652496,0.03,235.76,235.75,17.81693338]
[1738312653695,0.03,235.76,235.75,22.05863338]
[1738312654395,0.03,235.76,235.75,21.42259127]
[1738312654693,0.03,235.76,235.75,8.8677]
[1738312655598,0.03,235.76,235.75,17.18089127]
[1738312660603,0.03,235.76,235.75,1.0]
[1738312661085,20.0,235.69,235.58,1.0]
[1738312661279,20.0,235.65,235.57,1.0]
[1738312661479,13.41184853,235.64,235.56,6.65230655]
[1738312661687,13.41184853,235.6,235.56,6.65230655]
[1738312662514,13.41184853,235.58,235.56,6.65230655]
[1738312662893,13.41184853,235.6,235.56,6.65230655]
[1738312663794,13.41184853,235.6,235.53,1.0]
[1738312665217,13.41184853,235.6,235.52,0.063]
[1738312665218,13.41184853,235.6,235.55,1.0]
[1738312666827,13.41184853,235.6,235.53,1.0]
[1738312669929,13.83624853,235.6,235.53,1.0]
[1738312670127,13.83624853,235.6,235.52,0.063]
[1738312670701,13.83624853,235.6,235.53,1.0]
[1738312672124,13.83624853,235.6,235.56,1.0]
[1738312672309,13.83624853,235.6,235.53,1.0]
[1738312672915,13.83624853,235.6,235.56,1.0]
[1738312673121,13.83624853,235.6,235.54,1.0]
[1738312675933,13.83624853,235.6,235.56,1.0]
[1738312676525,13.83624853,235.6,235.54,1.0]
[1738312683752,13.83624853,235.6,235.56,1.0]
[1738312684957,13.83624853,235.6,235.54,1.063]
[1738312685262,20.0,235.57,235.54,0.063]
[1738312685555,13.41184853,235.56,235.54,0.063]
[1738312685855,33.41184853,235.55,235.54,0.063]
[1738312686156,33.41184853,235.55,235.52,0.063]
[1738312686157,13.41184853,235.53,235.52,0.063]
[1738312687239,13.83634853,235.53,235.52,0.063]
[1738312690235,14.92410905,235.53,235.52,0.063]
[1738312692599,13.83634853,235.53,235.52,0.063]
[1738312693945,13.83634853,235.53,235.43,0.063]
[1738312693946,0.97398949,235.45,235.43,0.063]
[1738312694151,13.41184853,235.4,235.36,0.03]
[1738312695471,13.83664853,235.4,235.36,0.03]
[1738312695842,13.83664853,235.4,235.31,0.063]
[1738312695843,13.83664853,235.4,235.31,0.593]
[1738312696043,13.41184853,235.34,235.31,0.063]
[1738312696496,20.0,235.35,235.31,0.063]
[1738312696680,20.0,235.36,235.33,0.53]
[1738312697197,0.4247,235.42,235.36,0.53]
[1738312698102,13.41184853,235.41,235.36,0.53]
[1738312699992,13.41184853,235.41,235.37,0.53]
[1738312701278,13.41184853,235.41,235.39,0.53]
[1738312702272,20.0,235.44,235.39,0.53]
[1738312702672,0.4247,235.46,235.42,0.53]
[1738312702901,0.4246,235.5,235.44,0.53]
[1738312703210,0.4246,235.5,235.46,0.53]
[1738312703395,13.41184853,235.49,235.42,0.53]
[1738312703700,13.41184853,235.49,235.46,0.53]
[1738312703906,13.41184853,235.47,235.42,0.53]
[1738312705021,13.41184853,235.47,235.4,0.53]
[1738312705386,13.41184853,235.47,235.46,0.53]
[1738312706892,20.0,235.48,235.46,0.53]
[1738312707092,13.41184853,235.47,235.46,0.53]
[1738312708614,13.86644853,235.47,235.46,0.53]
[1738312709311,0.03,235.47,235.46,0.53]
[1738312710091,13.44184853,235.47,235.44,0.53]
[1738312710394,13.41184853,235.46,235.44,0.53]
[1738312710909,13.83654853,235.45,235.41,0.53]
[1738312711114,13.41184853,235.44,235.39,0.53]
[1738312711288,0.4247,235.45,235.39,0.53]
[1738312711691,13.41184853,235.44,235.39,0.53]
[1738312712188,13.83654853,235.44,235.39,0.53]
[1738312712588,13.83654853,235.44,235.37,0.53]
[1738312712997,20.0,235.41,235.37,0.53]
[1738312713206,13.41184853,235.4,235.37,0.53]
[1738312713901,13.83664853,235.4,235.37,0.53]
[1738312714820,13.83664853,235.4,235.39,0.53]
[1738312715423,0.4546,235.47,235.39,4.7781]
[1738312715617,0.03,235.47,235.45,0.53]
[1738312715810,0.03,235.47,235.43,0.53]
[1738312716017,13.44184853,235.47,235.38,0.53]
[1738312716311,13.41184853,235.43,235.38,0.53]
[1738312716700,13.41184853,235.43,235.35,0.53]
[1738312716907,13.41184853,235.39,235.33,8.5463]
[1738312717111,13.41184853,235.39,235.33,2.1281]
[1738312717329,13.41184853,235.39,235.33,0.53]
[1738312717619,13.41184853,235.37,235.36,0.53]
[1738312718217,13.41184853,235.37,235.34,0.53]
[1738312718413,13.41184853,235.37,235.36,0.53]
[1738312718929,0.4247,235.43,235.36,0.53]
[1738312719215,20.4247,235.43,235.4,0.53]
[1738312719913,20.4247,235.43,235.42,0.53]
[1738312720116,80.6,235.46,235.42,0.53]
[1738312720328,0.4546,235.47,235.44,0.53]
[1738312721001,13.41184853,235.46,235.44,0.53]
[1738312721202,0.03,235.45,235.44,0.53]
[1738312729634,0.03,235.45,235.42,0.53]
[1738312730164,20.03,235.45,235.42,0.53]
[1738312730647,13.41184853,235.44,235.42,0.53]
[1738312730937,13.41184853,235.44,235.35,0.063]
[1738312730938,13.41184853,235.44,235.4,0.53]
[1738312731434,13.83664853,235.4,235.36,0.53]
[1738312731828,13.83664853,235.4,235.38,0.53]
[1738312732033,13.83664853,235.4,235.36,0.53]
[1738312733042,13.83664853,235.4,235.38,0.53]
[1738312733643,13.83664853,235.4,235.36,0.53]
[1738312736030,13.83664853,235.4,235.38,0.53]
[1738312736232,13.83664853,235.4,235.36,0.53]
[1738312737130,13.83664853,235.4,235.38,0.53]
[1738312738655,0.4247,235.42,235.38,0.53]
[1738312738839,0.4247,235.42,235.41,0.53]
[1738312739653,13.83654853,235.42,235.41,0.53]
[1738312741234,13.41184853,235.41,235.39,0.53]
[1738312741955,13.83664853,235.41,235.39,0.53]
[1738312742253,13.83664853,235.41,235.37,0.53]
[1738312742752,13.83664853,235.41,235.39,0.53]
[1738312744857,13.83664853,235.41,235.37,0.53]
[1738312745556,20.0,235.38,235.37,0.53]
[1738312745760,33.41184853,235.38,235.37,0.53]
[1738312747853,0.4248,235.39,235.37,0.53]
[1738312749056,20.0,235.38,235.37,0.53]
[1738312750264,33.41184853,235.38,235.37,0.53]
[1738312751258,0.4248,235.39,235.37,0.53]
[1738312751853,20.0,235.38,235.37,0.53]
[1738312753860,33.83664853,235.38,235.37,0.53]
[1738312757768,0.03,235.41,235.39,0.53]
[1738312758663,0.4547,235.41,235.39,0.53]
[1738312759969,0.03,235.41,235.39,0.53]
[1738312767456,0.03,235.41,235.39,4.7782]
[1738312767853,0.03,235.41,235.4,2.19838666]
[1738312769458,0.03,235.41,235.4,84.49838666]
[1738312769665,0.03,235.41,235.4,92.82293514]
[1738312769966,0.03,235.41,235.4,92.18584848]
[1738312773992,0.03,235.41,235.4,93.18584848]
[1738312775215,0.03,235.41,235.4,230.18584848]
[1738312776281,0.03,235.41,235.4,229.18584848]
[1738312779699,0.03,235.41,235.4,230.18584848]
[1738312780006,0.03,235.41,235.4,231.18584848]
[1738312780304,0.03,235.41,235.4,230.18584848]
[1738312781002,0.03,235.41,235.4,229.18584848]
[1738312785903,0.03,235.41,235.4,220.8613]
[1738312786314,0.03,235.41,235.4,219.3]
[1738312786994,0.03,235.41,235.4,82.3]
[1738312794418,0.03,235.41,235.39,0.53]
[1738312799517,0.03,235.41,235.4,8.32454848]
[1738312804618,12.82600746,235.49,235.48,0.53]
[1738312805233,32.82600746,235.49,235.48,0.53]
[1738312805926,32.82600746,235.49,235.42,0.53]
[1738312806133,32.82600746,235.49,235.47,0.53]
[1738312806626,32.82600746,235.49,235.41,0.53]
[1738312806834,32.82600746,235.49,235.47,0.53]
[1738312808504,33.88760746,235.49,235.47,0.53]
[1738312809121,33.88760746,235.49,235.41,0.53]
[1738312809344,114.48760746,235.49,235.4,0.53]
[1738312809545,94.01184853,235.48,235.47,0.53]
[1738312810047,13.41184853,235.47,235.46,0.53]
[1738312810925,13.83644853,235.47,235.46,0.53]
[1738312826247,13.86644853,235.47,235.46,0.53]
[1738312879011,20.03,235.47,235.46,0.53]
[1738312880131,33.44184853,235.47,235.46,0.53]
[1738312882224,33.44184853,235.47,235.37,8.32454848]
[1738312882225,13.83654853,235.46,235.35,6.7263234]
[1738312882734,13.41184853,235.42,235.35,6.7263234]
[1738312883122,20.0,235.39,235.35,6.7263234]
[1738312884930,0.4248,235.38,235.35,0.063]
[1738312906843,0.4547,235.45,235.36,1.643]
[1738312907031,0.03,235.45,235.4,14.41894848]
[1738312908221,0.03,235.45,235.42,8.32454848]
[1738312909836,0.03,235.45,235.44,8.32454848]
[1738312912728,0.03,235.45,235.42,8.32454848]
[1738312917065,0.03,235.45,235.4,14.41894848]
[1738312918664,0.03,235.45,235.4,6.0944]
[1738312925407,0.03,235.45,235.38,8.32454848]
[1738312925408,0.4247,235.44,235.38,8.32454848]
[1738312926481,0.03,235.45,235.38,8.32454848]
[1738312926671,13.44184853,235.45,235.38,8.32454848]
[1738312927682,0.4547,235.45,235.38,8.32454848]
[1738312929192,0.03,235.45,235.38,8.32454848]
[1738312929895,0.03,235.45,235.36,15.21634848]
[1738312931973,0.03,235.45,235.36,14.21634848]
[1738312940493,0.03,235.45,235.38,8.32454848]
[1738312940697,0.03,235.45,235.4,8.32454848]
[1738312941800,0.03,235.45,235.4,12.57254848]
[1738312942179,0.03,235.45,235.4,4.248]
[1738312943194,0.03,235.45,235.38,12.57294848]
[1738312947314,0.03,235.45,235.39,8.32454848]
[1738312947889,0.03,235.45,235.41,8.32454848]
[1738312950101,0.03,235.45,235.41,4.2478]
[1738312950312,0.03,235.45,235.43,8.32454848]
[1738312956823,0.03,235.45,235.42,8.32454848]
[1738312961030,0.03,235.45,235.41,12.57234848]
[1738312962739,0.03,235.45,235.42,8.32454848]
[1738312963226,0.03,235.45,235.41,8.32454848]
[1738312963416,0.03,235.45,235.39,90.62454848]
[1738312963614,0.03,235.45,235.42,0.063]
[1738312990156,0.03,235.45,235.42,4.3106]
[1738312992743,0.03,235.45,235.42,12.63514848]
[1738312994164,0.03,235.45,235.44,8.32454848]
[1738312995468,0.03,235.45,235.44,12.57184848]
[1738312998757,0.03,235.45,235.44,4.2473]
[1738312999344,0.03,235.45,235.42,86.6105]
[1738313005164,0.03,235.45,235.42,82.363]
[1738313006759,0.03,235.45,235.42,0.063]
[1738313030399,0.03,235.45,235.44,8.32454848]
[1738313031293,0.03,235.45,235.43,4.2473]
[1738313038295,0.03,235.45,235.43,12.57184848]
[1738313038793,0.03,235.45,235.44,8.32454848]
[1738313040091,0.03,235.45,235.44,12.57184848]
[1738313040486,0.03,235.45,235.44,4.2473]
[1738313044906,0.03,235.45,235.42,8.38754848]
[1738313045107,0.03,235.45,235.43,4.2475]
[1738313046185,0.03,235.45,235.44,8.32454848]
[1738313047413,0.03,235.45,235.44,12.57184848]
[1738313047609,0.03,235.45,235.44,4.2473]
[1738313051832,0.03,235.45,235.43,82.3]
[1738313053029,0.03,235.45,235.42,0.063]
[1738313062942,0.03,235.45,235.42,4.3105]
[1738313063125,0.03,235.45,235.42,12.63504848]
[1738313063838,0.03,235.45,235.42,4.3105]
[1738313065523,0.03,235.45,235.42,0.063]
[1738313080257,0.03,235.45,235.42,4.3106]
[1738313082858,0.03,235.45,235.42,12.63514848]
[1738313089971,0.03,235.45,235.42,8.38754848]
[1738313090667,0.03,235.45,235.42,0.063]
[1738313098449,0.03,235.45,235.42,4.3107]
[1738313098657,0.03,235.45,235.42,12.63524848]
[1738313102577,0.03,235.45,235.44,8.32454848]
[1738313103376,0.03,235.45,235.44,12.57184848]
[1738313104478,0.03,235.45,235.43,8.32454848]
[1738313104665,0.03,235.45,235.43,12.57204848]
[1738313107379,0.03,235.45,235.42,0.063]
[1738313109979,0.03,235.45,235.42,12.63514848]
[1738313110184,0.03,235.45,235.43,8.32454848]
[1738313110570,0.03,235.45,235.42,12.63514848]
[1738313110960,0.03,235.45,235.42,4.3106]
[1738313112087,0.03,235.45,235.42,12.63514848]
[1738313112464,0.03,235.45,235.42,4.3106]
[1738313120192,0.03,235.45,235.44,4.2473]
[1738313123095,0.03,235.45,235.42,86.6105]
[1738313125899,0.03,235.45,235.42,94.93504848]
[1738313130702,0.03,235.45,235.42,86.6105]
[1738313141890,0.03,235.45,235.42,0.063]
[1738313153131,0.4546,235.47,235.42,0.063]
[1738313160619,0.03,235.47,235.42,0.063]
[1738313170648,13.44184853,235.47,235.42,0.063]
[1738313171942,13.41184853,235.45,235.42,0.063]
[1738313173956,0.4247,235.44,235.42,0.063]
[1738313175725,0.4247,235.44,235.36,0.063]
[1738313175726,20.0,235.37,235.36,0.063]
[1738313176146,33.41184853,235.37,235.36,0.063]
[1738313177323,33.83664853,235.37,235.36,0.063]
[1738313181542,94.01184853,235.36,235.3,0.063]
[1738313181856,33.41184853,235.32,235.3,0.063]
[1738313183040,33.83674853,235.32,235.3,0.063]
[1738313185870,0.4248,235.36,235.3,0.063]
[1738313186231,20.0,235.33,235.3,0.063]
[1738313186463,20.0,235.32,235.3,0.063]
[1738313186838,20.0,235.34,235.3,0.063]
[1738313187970,0.10532911,235.43,235.3,0.063]
[1738313188177,1.03675121,235.39,235.3,0.063]
[1738313188366,0.03,235.42,235.3,0.063]
[1738313188677,20.0,235.37,235.3,0.063]
[1738313190966,20.4248,235.37,235.3,0.063]
[1738313192560,13.41184853,235.36,235.3,0.063]
[1738313192746,20.4249,235.33,235.3,0.063]
[1738313194369,20.0,235.33,235.3,0.063]
[1738313197152,0.4249,235.35,235.3,0.063]
[1738313199472,20.0,235.37,235.3,0.063]
[1738313199673,0.4248,235.39,235.3,9.96674848]
[1738313199876,1.0618,235.45,235.32,14.41184848]
[1738313200174,0.4547,235.42,235.33,8.32454848]
[1738313200973,20.03,235.42,235.33,4.2493]
[1738313201673,20.03,235.42,235.33,12.57384848]
[1738313202063,20.03,235.42,235.35,8.32454848]
[1738313202064,0.03,235.42,235.35,8.32454848]
[1738313202268,0.03,235.42,235.36,1.6125]
[1738313202774,0.4547,235.42,235.36,1.6125]
[1738313202967,0.03,235.42,235.36,1.6125]
[1738313203363,0.03,235.42,235.36,9.93704848]
[1738313203571,0.03,235.42,235.36,1.6125]
[1738313206880,0.03,235.42,235.36,5.8612]
[1738313208888,0.03,235.42,235.36,1.6125]
[1738313209187,20.0,235.41,235.32,88.3873]
[1738313210689,0.4248,235.4,235.32,88.3873]
[1738313210863,13.41184853,235.39,235.32,88.3873]
[1738313211063,13.41184853,235.39,235.32,6.0873]
[1738313211263,20.0,235.36,235.32,6.0873]
[1738313211563,20.0,235.36,235.31,0.063]
[1738313212386,13.41184853,235.35,235.31,0.063]
[1738313214688,13.83674853,235.35,235.31,0.063]
[1738313217088,0.4248,235.39,235.31,0.063]
[1738313217667,33.41184853,235.36,235.31,0.063]
[1738313220787,0.4248,235.37,235.31,0.063]
[1738313220994,20.4248,235.37,235.31,0.063]
[1738313221695,20.0,235.36,235.31,0.063]
[1738313225570,20.4248,235.36,235.31,0.063]
[1738313226278,20.0,235.32,235.31,0.063]
[1738313227271,33.41184853,235.32,235.31,0.063]
[1738313227470,33.83674853,235.32,235.31,0.063]
[1738313229690,13.41184853,235.31,235.28,0.063]
[1738313229889,33.41184853,235.28,235.27,0.063]
[1738313231286,33.83684853,235.28,235.27,0.063]
[1738313232483,20.0,235.25,235.24,0.063]
[1738313232686,20.0,235.23,235.21,0.063]
[1738313233215,94.01184853,235.22,235.21,0.063]
[1738313233517,94.43694853,235.22,235.21,0.063]
[1738313233905,95.4750826,235.22,235.21,0.063]
[1738313234299,13.83694853,235.22,235.2,0.063]
[1738313234499,20.0,235.2,235.19,0.063]
[1738313234720,13.41184853,235.2,235.19,0.063]
[1738313235692,13.83694853,235.2,235.19,0.063]
[1738313241226,13.89994853,235.2,235.19,0.063]
[1738313242218,0.063,235.2,235.19,0.063]
[1738313245024,0.063,235.2,235.19,8.38754848]
[1738313248237,0.063,235.2,235.19,0.063]
[1738313250035,33.47484853,235.2,235.19,0.063]
[1738313262556,13.83694853,235.19,235.18,0.063]
[1738313267669,0.063,235.2,235.18,0.063]
[1738313267870,0.063,235.2,235.18,9.96774848]
[1738313268062,0.063,235.2,235.18,14.21974848]
[1738313268264,0.063,235.2,235.18,9.96774848]
[1738313269670,0.063,235.2,235.18,14.21974848]
[1738313270771,0.063,235.2,235.19,13.01436022]
[1738313278272,0.063,235.2,235.19,13.65189059]
[1738313278470,80.6,235.33,235.19,14.65189059]
[1738313278670,20.4248,235.35,235.25,13.01436022]
[1738313278848,20.0,235.31,235.25,13.01436022]
[1738313279868,20.0,235.31,235.23,13.01436022]
[1738313280559,20.0,235.31,235.22,17.26556022]
[1738313280872,13.83684853,235.3,235.22,13.01436022]
[1738313282075,13.83684853,235.3,235.22,17.26556022]
[1738313282489,0.4248,235.35,235.22,4.2512]
[1738313282653,0.4248,235.35,235.25,13.01436022]
[1738313283163,13.41184853,235.34,235.23,13.01436022]
[1738313283647,13.41184853,235.3,235.22,82.3]
[1738313283848,13.41184853,235.3,235.21,17.26576022]
[1738313285679,13.41184853,235.3,235.23,13.01436022]
[1738313287484,13.47484853,235.3,235.23,17.26546022]
[1738313290589,13.47484853,235.3,235.24,8.32633859]
[1738313291159,0.063,235.3,235.24,8.32633859]
[1738313291580,0.063,235.3,235.26,8.32633859]
[1738313291784,0.063,235.3,235.28,8.32633859]
[1738313292789,0.063,235.3,235.28,12.57653859]
[1738313293889,0.063,235.3,235.28,8.32633859]
[1738313296580,0.063,235.3,235.26,8.32633859]
[1738313297592,0.063,235.3,235.27,4.2504]
[1738313297766,0.063,235.3,235.28,8.32633859]
[1738313298385,0.063,235.3,235.29,6.1394]
[1738313299477,0.063,235.3,235.27,1.5764]
[1738313300890,0.063,235.3,235.26,90.62633859]
[1738313301197,0.063,235.3,235.26,8.32633859]
[1738313301790,0.063,235.3,235.28,8.32633859]
[1738313302195,0.063,235.3,235.28,12.57643859]
[1738313303594,0.063,235.3,235.29,1.5043]
[1738313307190,0.063,235.3,235.29,83.8043]
[1738313308275,0.4879,235.3,235.2,13.31040105]
[1738313308474,13.41184853,235.29,235.2,13.31040105]
[1738313309395,13.41184853,235.29,235.2,25.88833964]
[1738313309996,13.41184853,235.29,235.2,12.60793859]
[1738313311189,0.063,235.3,235.22,8.32633859]
[1738313311498,0.063,235.3,235.25,8.32633859]
[1738313312696,0.063,235.3,235.25,13.00809581]
[1738313312886,0.063,235.3,235.27,13.00809581]
[1738313313086,0.063,235.3,235.29,13.00809581]
[1738313313987,0.063,235.3,235.27,13.00809581]